bitfinex/quotes_ETHUSD_20250314
["timestamp","ask_amount","ask_price","bid_price","bid_amount"]
[1741935724298,0.06586244,1898.0,1897.8,0.15114367]
[1741935724598,0.06586244,1898.0,1897.8,0.69320704]
[1741935727592,0.06586244,1898.0,1897.8,0.15114367]
[1741935727900,0.06586244,1898.0,1897.7,5.26949]
[1741935728061,0.06586177,1898.1,1897.8,0.15114367]
[1741935728259,5.26787,1898.3,1897.9,6.03282]
[1741935728459,0.06585977,1898.2,1898.0,0.15103349]
[1741935728858,3.0,1898.4,1898.1,5.26842]
[1741935729106,8.33361261,1898.4,1898.2,0.15092333]
[1741935729259,8.33361261,1898.4,1898.0,0.61837535]
[1741935729260,8.33361261,1898.4,1897.9,11.30171]
[1741935729599,13.60143261,1898.4,1898.0,0.15103349]
[1741935729762,13.53558,1898.4,1898.0,0.15103349]
[1741935729963,0.0658527,1898.3,1898.0,0.76941084]
[1741935730900,5.3337527,1898.3,1898.0,0.76941084]
[1741935731082,6.1150527,1898.3,1898.0,0.15103349]
[1741935731799,0.8471527,1898.3,1898.0,5.41971349]
[1741935731999,0.0658527,1898.3,1898.0,5.41971349]
[1741935732397,8.3336127,1898.4,1898.0,5.41971349]
[1741935732561,8.3336127,1898.4,1898.0,10.68819349]
[1741935732761,8.3336127,1898.4,1898.0,1.29625284]
[1741935732961,5.2679,1898.3,1898.0,0.15103349]
[1741935733405,0.06585375,1898.3,1898.0,5.41969349]
[1741935734076,3.0,1898.4,1898.0,5.41969349]
[1741935734309,3.06585367,1898.4,1898.0,5.41969349]
[1741935734853,3.0,1898.4,1898.1,5.26842]
[1741935735138,3.0,1898.4,1898.2,6.21010916]
[1741935735832,11.28718,1898.6,1898.2,6.21010916]
[1741935736042,8.7304,1898.7,1898.3,5.26779]
[1741935736327,0.06584402,1898.6,1898.4,0.15108902]
[1741935737248,5.7304,1898.7,1898.4,0.15108902]
[1741935737436,7.9848408,1898.7,1898.4,5.41853902]
[1741935738454,13.2516008,1898.7,1898.4,0.15108902]
[1741935738753,13.18576,1898.7,1898.4,0.15108902]
[1741935738926,6.09218281,1898.6,1898.4,0.15108902]
[1741935739129,6.09218281,1898.6,1898.2,6.059]
[1741935739312,6.09218281,1898.6,1898.3,0.15102589]
[1741935740247,5.26731,1898.5,1898.3,0.15102589]
[1741935740711,10.6007341,1898.5,1898.3,0.15102589]
[1741935740913,6.02629,1898.6,1898.1,5.81553364]
[1741935741115,5.26773,1898.4,1898.2,0.15110065]
[1741935741418,5.26773,1898.4,1898.0,0.7905]
[1741935741618,5.26773,1898.4,1898.3,0.15104558]
[1741935741837,5.26749,1898.5,1898.3,0.15104558]
[1741935742036,5.33333889,1898.5,1898.1,5.26837]
[1741935742261,5.26763,1898.4,1898.2,0.67793765]
[1741935742573,5.26763,1898.4,1898.2,0.15110065]
[1741935742875,0.06584923,1898.4,1898.0,6.05893]
[1741935743185,0.06584923,1898.4,1898.1,0.15115573]
[1741935743472,5.33345923,1898.4,1898.1,0.15115573]
[1741935743879,10.60129923,1898.4,1898.1,0.15115573]
[1741935744082,5.26792,1898.3,1898.1,0.15115573]
[1741935744374,0.8278,1898.3,1898.1,0.15115573]
[1741935744727,0.8278,1898.3,1897.9,11.35897]
[1741935744934,0.8278,1898.3,1898.0,1.28693049]
[1741935745276,6.09571,1898.3,1898.0,0.15103349]
[1741935745494,5.26842,1898.1,1898.0,0.15103349]
[1741935745789,6.06292,1898.1,1897.7,5.26943]
[1741935745962,0.7945,1898.1,1898.0,0.1512305]
[1741935746159,0.86036174,1898.1,1897.7,5.26943]
[1741935746348,0.86036174,1898.1,1898.0,0.1512305]
[1741935746548,6.06291,1898.2,1897.8,5.26913]
[1741935746758,3.06586172,1898.2,1898.0,5.4197505]
[1741935746964,8.33402172,1898.2,1897.9,0.96998559]
[1741935747139,8.33402172,1898.2,1898.1,0.1513035]
[1741935747472,8.33402172,1898.2,1898.1,0.15129365]
[1741935747774,8.33402172,1898.2,1897.8,5.2692]
[1741935747944,3.06586172,1898.2,1898.1,0.15129365]
[1741935748270,3.06586172,1898.2,1897.8,10.53814]
[1741935748578,8.33401172,1898.2,1897.8,5.26904]
[1741935748748,8.33401172,1898.2,1897.9,0.15140382]
[1741935750268,3.06586172,1898.2,1897.9,0.15140382]
[1741935750440,8.33412172,1898.2,1897.9,0.15140382]
[1741935750641,5.26842,1898.1,1897.9,0.15140382]
[1741935750961,5.26919,1897.9,1897.6,0.48606041]
[1741935751268,5.33523219,1897.8,1897.6,0.48606041]
[1741935752580,5.33523219,1897.8,1897.4,5.2702]
[1741935752737,0.06587219,1897.8,1897.4,5.2702]
[1741935753290,0.06587219,1897.8,1897.5,5.27008]
[1741935753476,0.06587219,1897.8,1897.6,0.527008]
[1741935753787,0.8118,1897.7,1897.4,5.27019]
[1741935754096,0.06587228,1897.6,1897.3,0.8209]
[1741935754393,0.06587228,1897.6,1897.3,5.27063]
[1741935754692,0.8118,1897.7,1897.4,5.2703]
[1741935754895,0.8118,1897.7,1897.4,6.324374]
[1741935755267,0.06587567,1897.6,1897.5,0.15214644]
[1741935757759,5.27014,1897.5,1897.2,1.07723019]
[1741935758072,5.27014,1897.5,1897.1,6.03254]
[1741935758283,5.3360234,1897.5,1897.1,6.03254]
[1741935758980,0.7551,1897.4,1897.1,5.27094]
[1741935759183,6.02551,1897.4,1897.1,1.054241]
[1741935759381,6.09139645,1897.4,1897.1,1.054241]
[1741935762565,5.27069,1897.3,1896.9,6.03525]
[1741935762768,0.06588921,1897.2,1896.9,11.30681]
[1741935762975,0.06588921,1897.3,1897.0,5.2714]
[1741935763177,0.06588921,1897.3,1897.0,5.27137]
[1741935763669,0.06588921,1897.3,1897.0,5.88012814]
[1741935765389,0.06588921,1897.3,1897.0,0.60875814]
[1741935765597,5.33654921,1897.3,1896.9,7.07305026]
[1741935765768,5.33654921,1897.3,1896.9,6.03512]
[1741935766891,5.27103,1897.2,1896.8,5.27178]
[1741935767056,0.06589375,1897.1,1896.8,5.27178]
[1741935767696,0.06589375,1897.1,1896.8,10.54368]
[1741935767855,0.06589375,1897.1,1896.8,11.679438]
[1741935769297,0.06589375,1897.1,1896.8,6.407538]
[1741935770404,0.83359375,1897.1,1896.9,0.15356152]
[1741935770772,0.83359375,1897.1,1896.8,1.135758]
[1741935771007,0.83359375,1897.1,1897.0,0.15350637]
[1741935771511,0.83359375,1897.1,1896.8,1.135758]
[1741935771676,0.83359375,1897.1,1896.9,0.15356152]
[1741935772016,0.83359375,1897.1,1896.8,1.135758]
[1741935772206,0.83359375,1897.1,1897.0,0.15350637]
[1741935772367,0.83359375,1897.1,1896.8,1.135758]
[1741935772368,0.83359375,1897.1,1896.9,0.15356152]
[1741935772573,0.06589375,1897.1,1897.0,0.15350637]
[1741935772801,10.9932,1897.5,1897.0,6.19388637]
[1741935772994,5.33626987,1897.4,1897.0,6.19388637]
[1741935774475,5.33626987,1897.4,1897.0,0.92240637]
[1741935774811,6.07356,1897.3,1897.0,0.15350637]
[1741935774998,0.06588985,1897.2,1897.0,0.15350637]
[1741935775696,5.33680985,1897.2,1897.0,0.15350637]
[1741935776230,0.06588985,1897.2,1896.8,11.31262]
[1741935776434,0.06588985,1897.2,1897.1,0.15345122]
[1741935776591,6.13945258,1897.3,1896.9,6.403012]
[1741935776790,6.13945258,1897.3,1897.1,0.15345122]
[1741935776991,0.8029,1897.3,1897.0,5.42497594]
[1741935777225,5.27037,1897.4,1897.2,0.15342567]
[1741935777405,6.366297,1897.4,1897.1,0.1534808]
[1741935777732,5.6889,1897.5,1897.2,0.15342567]
[1741935777915,10.95911,1897.5,1897.1,5.27107]
[1741935778119,10.95911,1897.5,1897.2,0.15342567]
[1741935778318,11.30943,1897.5,1897.1,6.07487]
[1741935778639,4.921,1897.4,1897.2,0.15342567]
[1741935778931,11.30943,1897.5,1897.1,6.07487]
[1741935779138,4.921,1897.5,1897.2,6.03157267]
[1741935779700,3.06588282,1897.5,1897.2,6.03157267]
[1741935780798,3.06588282,1897.5,1897.2,0.76091267]
[1741935781036,13.60653282,1897.5,1897.2,0.15342567]
[1741935781326,13.54061,1897.5,1897.1,0.8038]
[1741935781490,6.03347,1897.4,1897.2,0.15342567]
[1741935781703,0.06588905,1897.3,1897.0,5.27147]
[1741935781902,0.06588905,1897.3,1897.1,0.1534808]
[1741935782296,5.33664905,1897.3,1896.9,5.27175]
[1741935782631,5.33664905,1897.3,1897.0,0.15353594]
[1741935783603,0.06588905,1897.3,1897.0,0.15353594]
[1741935783799,0.82899153,1897.4,1897.0,0.91153594]
[1741935783999,0.82899153,1897.4,1897.0,6.18283594]
[1741935784199,6.09938153,1897.4,1897.0,0.15353594]
[1741935784400,5.27079,1897.3,1897.0,0.15353594]
[1741935784600,0.06589181,1897.2,1897.0,0.15353594]
[1741935784835,0.06589181,1897.2,1896.8,6.07041]
[1741935785131,0.06589181,1897.2,1896.9,5.878731]
[1741935785309,0.06589044,1897.3,1897.0,5.42489664]
[1741935785694,5.33674044,1897.3,1897.0,0.15348664]
[1741935785938,0.817,1897.2,1897.0,0.15348664]
[1741935786234,0.817,1897.2,1896.8,6.0706]
[1741935786432,0.817,1897.2,1897.1,0.1534808]
[1741935786641,0.817,1897.2,1896.8,6.0706]
[1741935786821,6.08792,1897.2,1897.1,0.1534808]
[1741935786995,0.817,1897.2,1896.8,11.34243]
[1741935787199,0.817,1897.2,1897.1,0.1534808]
[1741935787428,0.817,1897.2,1896.8,6.07043]
[1741935787634,6.08792,1897.2,1897.1,0.1534808]
[1741935787798,6.08792,1897.2,1896.8,7.204703]
[1741935788013,6.08792,1897.2,1897.1,0.1534808]
[1741935788241,6.08792,1897.2,1896.8,5.27183]
[1741935788448,6.08792,1897.2,1897.1,0.1534808]
[1741935788601,0.817,1897.2,1896.8,5.27182]
[1741935788801,0.817,1897.2,1897.1,0.15351041]
[1741935789045,0.817,1897.2,1896.8,10.54373]
[1741935789199,0.817,1897.2,1897.1,0.15351041]
[1741935789401,0.817,1897.2,1896.8,10.54373]
[1741935789601,0.817,1897.2,1897.1,0.15351041]
[1741935789837,5.27085,1897.3,1896.9,5.27165]
[1741935789838,6.02875,1897.3,1896.9,5.27165]
[1741935790045,0.7579,1897.3,1897.1,0.15351041]
[1741935790204,0.7579,1897.3,1897.0,5.42503485]
[1741935790537,5.33626175,1897.4,1897.1,0.15355971]
[1741935791247,5.27069,1897.3,1897.1,0.15355971]
[1741935791416,0.06589175,1897.2,1897.1,0.15355971]
[1741935791743,0.06589174,1897.3,1897.1,0.15355971]
[1741935792428,10.19137,1897.4,1897.1,0.69605268]
[1741935793443,9.028,1897.5,1897.1,5.96725268]
[1741935793647,0.06588852,1897.4,1897.1,5.96725268]
[1741935793838,8.33598538,1897.5,1897.2,0.7901]
[1741935794232,3.06588538,1897.5,1897.3,0.15344945]
[1741935794445,3.06588538,1897.5,1897.3,5.42402945]
[1741935794943,3.0,1897.5,1897.3,5.42402945]
[1741935795123,3.0,1897.5,1897.3,6.0454424]
[1741935795518,3.0,1897.5,1897.3,6.0453924]
[1741935796213,3.0,1897.5,1897.3,0.7748624]
[1741935796739,8.2701,1897.5,1897.3,0.7748624]
[1741935796933,8.2701,1897.5,1897.3,0.15344945]
[1741935797327,0.06587998,1897.4,1897.3,0.15344945]
[1741935797529,0.06587998,1897.4,1897.1,5.81357297]
[1741935797941,0.06587998,1897.4,1897.2,0.15350458]
[1741935798242,0.06587998,1897.4,1897.1,5.81357297]
[1741935798436,0.06587998,1897.4,1897.3,0.15344945]
[1741935798638,6.09386998,1897.4,1897.2,0.15350458]
[1741935798849,6.92746798,1897.4,1897.3,0.15344945]
[1741935799214,5.27067,1897.3,1896.9,0.8188]
[1741935799410,5.33681171,1897.2,1896.9,0.8188]
[1741935799654,5.33681171,1897.2,1896.9,1.42786]
[1741935800017,0.06589171,1897.2,1896.9,1.42786]
[1741935800218,0.06589171,1897.2,1896.9,6.69957]
[1741935800456,0.06589171,1897.2,1897.0,0.14696948]
[1741935801037,5.33689171,1897.2,1897.0,0.14696948]
[1741935801241,5.2712,1897.1,1897.0,0.14696948]
[1741935801439,5.271,1897.2,1897.0,0.14696948]
[1741935801645,0.06589479,1897.2,1896.8,5.27185]
[1741935801847,5.27071,1897.3,1897.1,0.14155767]
[1741935802142,4.921,1897.3,1897.2,0.14168002]
[1741935802345,4.921,1897.3,1897.0,6.06723]
[1741935802662,4.98689244,1897.3,1897.1,0.14173515]
[1741935807463,10.25757244,1897.3,1897.1,0.14173515]
[1741935807663,10.19168,1897.3,1897.1,0.14173515]
[1741935807859,5.33680963,1897.2,1897.1,0.14173515]
[1741935808272,5.33680963,1897.2,1896.8,7.11106735]
[1741935808561,5.33680963,1897.2,1896.8,12.05224674]
[1741935808762,5.33680963,1897.2,1896.9,0.14178627]
[1741935808977,0.06588963,1897.2,1896.9,5.27175]
[1741935809183,0.06588963,1897.2,1897.0,0.14173113]
[1741935809486,5.33684963,1897.2,1897.0,0.14173113]
[1741935809851,5.27129,1897.1,1896.8,0.7971]
[1741935810052,0.06589517,1897.0,1896.6,11.30715]
[1741935810384,0.06589517,1897.0,1896.7,6.403005]
[1741935811090,6.02809,1897.1,1896.7,6.45572281]
[1741935811496,6.02809,1897.1,1896.7,6.403005]
[1741935811991,6.0281,1897.1,1896.7,6.45559274]
[1741935812181,0.06589717,1897.0,1896.7,6.402875]
[1741935812356,6.0281,1897.1,1896.8,0.6402875]
[1741935812779,6.09399753,1897.1,1896.8,0.6402875]
[1741935813723,11.36545753,1897.1,1896.8,0.6402875]
[1741935814009,6.0281,1897.1,1896.8,0.6402875]
[1741935814216,6.09399752,1897.1,1896.8,0.6402875]
[1741935814665,6.09399752,1897.1,1896.8,5.9123175]
[1741935814666,0.82269752,1897.1,1896.8,5.9123175]
[1741935814871,0.06589752,1897.1,1896.8,5.9123175]
[1741935815071,5.27092,1897.2,1896.8,5.9123175]
[1741935815317,5.3368175,1897.2,1896.8,5.9123175]
[1741935815475,5.3368175,1897.2,1896.9,0.14189474]
[1741935815871,5.3368175,1897.2,1896.8,5.9123175]
[1741935816071,5.3368175,1897.2,1897.0,0.14183959]
[1741935816273,5.3368175,1897.2,1896.9,0.14189474]
[1741935816475,5.3368175,1897.2,1897.1,0.14178445]
[1741935816713,5.3368175,1897.2,1897.0,0.14183959]
[1741935816959,5.3368175,1897.2,1897.1,0.14178445]
[1741935817209,5.3368175,1897.2,1896.8,5.27203]
[1741935817386,5.3368175,1897.2,1896.9,0.14189474]
[1741935817706,5.3368175,1897.2,1896.8,5.27203]
[1741935818009,5.3368175,1897.2,1896.9,0.14189474]
[1741935818240,5.3368175,1897.2,1896.8,5.27203]
[1741935818374,5.3368175,1897.2,1897.0,0.14183959]
[1741935818574,5.3368175,1897.2,1896.8,5.27203]
[1741935818817,5.3368175,1897.2,1896.9,0.14189474]
[1741935819017,5.3368175,1897.2,1896.8,5.27203]
[1741935819216,5.3368175,1897.2,1896.9,0.14189474]
[1741935819416,5.3368175,1897.2,1896.8,5.27203]
[1741935819716,5.3368175,1897.2,1896.9,0.14189474]
[1741935820017,5.3368175,1897.2,1896.8,5.27203]
[1741935820202,5.3368175,1897.2,1896.9,0.14189474]
[1741935820400,5.3368175,1897.2,1896.8,5.27203]
[1741935820713,5.3368175,1897.2,1896.9,0.14189474]
[1741935821008,5.3368175,1897.2,1896.8,5.27203]
[1741935821188,5.3368175,1897.2,1896.9,0.14189474]
[1741935821526,5.3368175,1897.2,1896.8,5.27203]
[1741935821809,5.3368175,1897.2,1897.0,0.14183959]
[1741935822017,5.3368175,1897.2,1897.1,0.14178445]
[1741935822221,0.0658975,1897.2,1896.9,5.27161]
[1741935822432,0.06589479,1897.2,1897.0,0.14183959]
[1741935823444,6.1016,1897.1,1897.0,0.14183959]
[1741935823788,6.1016,1897.1,1896.8,0.48769228]
[1741935824026,0.06589793,1897.0,1896.9,0.14190459]
[1741935824439,0.06589793,1897.0,1896.8,0.48769228]
[1741935824668,0.06589793,1897.0,1896.9,0.14190459]
[1741935824968,0.06589793,1897.0,1896.8,0.48769228]
[1741935824969,7.13475104,1897.0,1896.8,0.48769228]
[1741935825173,8.45838614,1897.0,1896.9,0.14190459]
[1741935825472,8.45838614,1897.0,1896.5,5.27265]
[1741935825667,7.13475104,1897.0,1896.9,0.14190459]
[1741935825869,7.13475104,1897.0,1896.4,6.05594]
[1741935825870,5.2722,1896.8,1896.4,6.05594]
[1741935826041,0.0659106,1896.7,1896.4,0.7828]
[1741935827181,5.3382206,1896.7,1896.4,0.7828]
[1741935828471,5.3382206,1896.7,1896.3,6.34602624]
[1741935828653,5.3382206,1896.7,1896.3,1.07280624]
[1741935828845,5.3382206,1896.7,1896.2,11.34428]
[1741935829032,10.6106606,1896.7,1896.2,12.478708]
[1741935829234,10.54475,1896.7,1896.2,12.478708]
[1741935829432,10.54475,1896.7,1896.2,12.478628]
[1741935829869,10.54475,1896.7,1896.2,7.205048]
[1741935830074,0.7633,1896.6,1896.2,7.205048]
[1741935830236,0.82921065,1896.6,1896.2,7.205048]
[1741935830432,5.27289,1896.5,1896.3,0.13783947]
[1741935830666,0.06591374,1896.4,1896.3,0.62537831]
[1741935831936,0.7633,1896.6,1896.3,0.62537831]
[1741935832173,0.7633,1896.6,1896.3,5.89879831]
[1741935832371,0.7633,1896.6,1896.3,0.13783947]
[1741935832613,0.82921628,1896.6,1896.3,0.13783947]
[1741935832813,0.06591628,1896.6,1896.3,6.56094442]
[1741935832987,0.06591628,1896.6,1896.3,6.42310495]
[1741935832988,0.06591625,1896.6,1896.3,6.42310495]
[1741935833182,0.06591625,1896.6,1896.4,0.13801119]
[1741935833387,0.06591625,1896.6,1896.3,6.42310495]
[1741935833587,0.06591625,1896.6,1896.4,0.13801119]
[1741935833788,0.06591625,1896.6,1896.3,6.42310495]
[1741935833988,0.06591625,1896.6,1896.4,0.13801119]
[1741935834301,0.06591625,1896.6,1896.3,6.42306495]
[1741935834506,0.06591625,1896.6,1896.5,0.13795602]
[1741935834690,0.06591625,1896.6,1896.4,0.13801119]
[1741935834889,0.06591625,1896.6,1896.5,0.13795602]
[1741935835208,0.06591625,1896.6,1896.3,6.42306495]
[1741935835424,0.06591625,1896.6,1896.4,0.78031768]
[1741935835715,0.06591023,1896.7,1896.4,6.17865119]
[1741935835871,0.06591023,1896.7,1896.4,11.45166119]
[1741935836076,10.99207,1896.8,1896.4,11.45168119]
[1741935836277,5.72,1896.8,1896.5,5.27284]
[1741935836492,4.922,1896.8,1896.5,5.27284]
[1741935836690,4.922,1896.8,1896.6,0.13790085]
[1741935837380,11.29188,1896.9,1896.6,0.13790085]
[1741935837579,0.06591001,1896.8,1896.6,0.13790085]
[1741935837794,10.942,1896.9,1896.6,5.41046085]
[1741935838410,10.942,1896.9,1896.6,0.13790085]
[1741935838600,0.06590745,1896.8,1896.6,0.13790085]
[1741935839202,0.06590745,1896.8,1896.6,5.41048085]
[1741935839612,0.06590745,1896.8,1896.6,0.13790085]
[1741935841628,0.06590745,1896.8,1896.6,5.41037085]
[1741935841930,10.942,1896.9,1896.6,5.41037085]
[1741935842092,4.922,1896.9,1896.6,5.41037085]
[1741935842583,4.98790743,1896.9,1896.6,5.41037085]
[1741935842922,4.98790743,1896.9,1896.6,0.13790085]
[1741935842923,10.25969743,1896.9,1896.6,0.13790085]
[1741935843225,17.39388974,1896.9,1896.6,0.13790085]
[1741935843526,6.03374,1896.8,1896.6,0.13790085]
[1741935843740,0.06590768,1896.7,1896.6,0.13790085]
[1741935843940,0.06590768,1896.7,1896.4,10.54607]
[1741935844091,0.06590768,1896.7,1896.6,0.13791071]
[1741935844291,0.06590768,1896.7,1896.5,0.13796587]
[1741935844520,0.06590768,1896.7,1896.5,5.41077587]
[1741935845098,0.06590768,1896.7,1896.5,0.13796587]
[1741935845433,5.94828645,1896.7,1896.3,5.27325]
[1741935845593,5.94828645,1896.7,1896.4,0.13802105]
[1741935845798,5.94828645,1896.7,1896.3,5.27325]
[1741935846130,11.22084645,1896.7,1896.4,0.13802105]
[1741935846331,11.15493877,1896.7,1896.4,0.13802105]
[1741935846493,0.06591221,1896.6,1896.2,12.87897983]
[1741935846693,0.06591221,1896.6,1896.5,0.13806454]
[1741935846922,0.06591221,1896.6,1896.2,12.87897983]
[1741935847124,0.7765,1896.5,1896.2,1.56769983]
[1741935847324,0.06591696,1896.4,1896.2,1.08075826]
[1741935847639,0.06591696,1896.4,1896.1,10.5476]
[1741935847843,0.06591696,1896.4,1896.1,5.27375]
[1741935848811,0.06591696,1896.4,1896.0,6.52098322]
[1741935849017,6.44295666,1896.4,1896.0,5.76138322]
[1741935849544,0.8038,1896.3,1896.0,0.48713322]
[1741935849725,0.06592578,1896.2,1896.0,0.48713322]
[1741935850040,5.27432,1896.0,1895.8,0.48713322]
[1741935850245,3.5933678,1895.9,1895.8,0.48713322]
[1741935850400,9.6463978,1895.9,1895.8,0.48713322]
[1741935850600,9.580462,1895.9,1895.8,0.48713322]
[1741935851347,12.57764237,1895.9,1895.8,0.48713322]
[1741935851548,5.27526,1895.7,1895.2,6.31610758]
[1741935851731,0.06594936,1895.6,1895.2,7.55639934]
[1741935851936,5.34136936,1895.6,1895.2,7.55639934]
[1741935852111,0.06594936,1895.6,1895.2,12.83263934]
[1741935852318,0.06594936,1895.6,1895.2,11.79292176]
[1741935852512,0.06594936,1895.6,1895.2,6.51655176]
[1741935852717,0.06594936,1895.6,1895.2,0.05275948]
[1741935853134,0.06594936,1895.6,1895.3,5.27604]
[1741935853743,5.34133936,1895.6,1895.2,0.05275948]
[1741935853948,5.34133936,1895.6,1895.1,6.08675]
[1741935854148,0.8209,1895.5,1895.1,11.84942917]
[1741935854445,0.06595255,1895.4,1895.1,7.75780209]
[1741935854632,0.06595255,1895.4,1895.1,13.03437209]
[1741935854951,0.8209,1895.5,1895.2,5.27646]
[1741935855246,0.06595419,1895.4,1895.1,13.03439209]
[1741935855445,0.06595419,1895.4,1895.1,12.54828292]
[1741935855754,4.923,1895.8,1895.5,5.27556]
[1741935856310,4.98894336,1895.8,1895.5,5.27556]
[1741935856520,4.923,1895.8,1895.7,5.27509]
[1741935856721,0.85374094,1895.9,1895.7,10.55003]
[1741935856953,4.923,1896.0,1895.7,5.27494]
[1741935857960,4.98893883,1896.0,1895.8,5.27463]
[1741935858102,0.06593883,1896.0,1895.8,5.27463]
[1741935858308,0.8148,1896.1,1895.8,11.604249]
[1741935858309,0.06593526,1896.1,1895.8,11.604249]
[1741935858708,0.06593526,1896.1,1895.9,0.11996067]
[1741935859152,5.33991526,1896.1,1895.6,6.06319]
[1741935859315,5.33991526,1896.1,1896.0,0.11990546]
[1741935859515,5.33991526,1896.1,1895.7,5.27497]
[1741935859516,0.06593526,1896.1,1895.7,5.27497]
[1741935859820,0.06593526,1896.1,1895.8,0.12001588]
[1741935860909,6.02552,1896.0,1895.8,0.12001588]
[1741935861150,0.06593152,1895.9,1895.8,0.12001588]
[1741935861355,0.06593152,1895.9,1895.6,5.27509]
[1741935861557,0.06593152,1895.9,1895.8,0.12065591]
[1741935861709,0.06593152,1895.9,1895.7,0.12071113]
[1741935862068,14.40606567,1895.9,1895.8,0.12065591]
[1741935862212,15.17103415,1895.9,1895.8,0.12065591]
[1741935862561,8.27488,1895.8,1895.4,5.27565]
[1741935862853,8.27488,1895.8,1895.5,0.12085113]
[1741935863157,3.0,1895.8,1895.6,5.27522]
[1741935863456,3.06594292,1895.8,1895.7,0.1165748]
[1741935863758,4.06218763,1895.8,1895.7,0.1165748]
[1741935864224,4.06218763,1895.8,1895.5,5.27551]
[1741935864424,3.06594292,1895.8,1895.6,0.11663002]
[1741935869070,8.34079292,1895.8,1895.7,0.1165748]
[1741935869553,5.27525,1895.7,1895.2,6.06568]
[1741935869719,0.06594831,1895.6,1895.2,6.06568]
[1741935870110,0.8108,1895.5,1895.1,6.33371215]
[1741935870435,0.06595338,1895.4,1895.1,5.27675]
[1741935872656,5.34188338,1895.4,1895.0,17.46135]
[1741935873152,5.27641,1895.3,1895.0,0.8174]
[1741935873324,6.15476026,1895.2,1894.8,6.08664]
[1741935873541,6.15476026,1895.2,1894.8,5.27744]
[1741935874368,6.15476026,1895.2,1894.7,5.27787]
[1741935874525,5.27688,1895.1,1894.7,5.27787]
[1741935874868,6.0888,1895.2,1894.7,5.27762]
[1741935875065,6.0888,1895.2,1894.8,5.27759]
[1741935875251,5.27677,1895.1,1894.7,5.27762]
[1741935875566,5.34301799,1895.0,1894.8,0.1173571]
[1741935875940,5.34301799,1895.0,1894.6,12.13003]
[1741935876138,7.23191779,1895.2,1894.9,0.11779341]
[1741935876339,7.23191779,1895.2,1894.7,5.27766]
[1741935876534,7.23191779,1895.2,1895.0,0.11773815]
[1741935876734,7.23191779,1895.2,1894.8,5.27759]
[1741935876932,7.23191779,1895.2,1895.1,0.11768289]
[1741935877147,7.23191779,1895.2,1894.9,5.27719]
[1741935877148,1.95539779,1895.2,1894.9,5.27719]
[1741935877357,0.8123,1895.2,1895.1,0.11768289]
[1741935877866,0.8123,1895.2,1894.9,5.27719]
[1741935878072,0.8123,1895.2,1895.1,0.11768289]
[1741935878369,0.8123,1895.2,1895.0,0.11773815]
[1741935878669,0.8123,1895.2,1895.1,0.11768289]
[1741935879170,0.8123,1895.2,1894.9,5.27719]
[1741935879352,0.8123,1895.2,1895.1,0.11768289]
[1741935879554,2.08912132,1895.2,1895.0,0.11773815]
[1741935879727,0.87826632,1895.2,1895.1,0.11768289]
[1741935880531,0.8123,1895.2,1895.1,0.11768289]
[1741935881247,0.8123,1895.2,1894.9,5.27719]
[1741935881459,0.06596605,1895.1,1895.0,0.11773815]
[1741935882078,0.8123,1895.2,1895.0,0.11773815]
[1741935882283,0.06596592,1895.1,1895.0,5.39463815]
[1741935882986,3.8302,1895.3,1895.0,5.39463815]
[1741935883344,3.8302,1895.3,1895.0,0.11773815]
[1741935883783,3.8302,1895.3,1895.0,5.39471815]
[1741935884382,3.8302,1895.3,1895.1,5.27675]
[1741935884764,3.8302,1895.3,1895.2,0.11381849]
[1741935885163,3.8302,1895.3,1895.0,5.27698]
[1741935885463,3.8302,1895.3,1895.1,0.11387374]
[1741935889255,3.8302,1895.3,1894.9,11.31816]
[1741935889470,3.8302,1895.3,1895.0,0.113929]
[1741935891679,3.8302,1895.3,1895.0,5.390949]
[1741935893891,3.0,1895.3,1895.0,6.5341389]
[1741935894057,3.0,1895.3,1895.2,5.27646]
[1741935894260,3.0,1895.3,1895.2,0.11388717]
[1741935894472,3.0,1895.3,1895.1,5.27653]
[1741935894692,3.0,1895.3,1895.2,0.11388717]
[1741935895182,3.0,1895.3,1895.1,10.55306]
[1741935895383,3.0,1895.3,1895.2,0.11388717]
[1741935895693,3.0,1895.3,1895.1,11.72268399]
[1741935895992,3.7723,1895.5,1895.2,0.11388717]
[1741935896195,8.6983,1895.5,1895.2,0.11388717]
[1741935896362,8.6983,1895.5,1895.1,11.72268399]
[1741935896563,8.6983,1895.5,1895.3,0.11383193]
[1741935896763,8.6983,1895.5,1895.2,5.39035717]
[1741935896976,8.6983,1895.5,1895.4,0.11377669]
[1741935897477,8.6983,1895.5,1895.2,5.27647]
[1741935897678,8.6983,1895.5,1895.3,0.11383193]
[1741935897879,13.97395,1895.5,1895.1,10.55314]
[1741935898080,15.93850834,1895.5,1895.2,0.11388717]
[1741935898406,15.93850834,1895.5,1895.1,11.32464]
[1741935898607,13.97395,1895.5,1895.3,0.11383193]
[1741935898902,13.97395,1895.5,1895.4,0.11377669]
[1741935899266,13.97395,1895.5,1895.1,11.32464]
[1741935899481,8.6983,1895.5,1895.2,0.11388717]
[1741935899680,3.0,1895.4,1895.1,6.04815]
[1741935899882,3.0,1895.4,1895.2,0.11389698]
[1741935900082,3.0,1895.4,1895.1,6.04815]
[1741935900383,3.0,1895.4,1895.2,0.11389698]
[1741935900895,3.0,1895.4,1895.3,0.11384174]
[1741935901274,3.0,1895.4,1895.1,6.04809]
[1741935901609,3.0,1895.4,1895.2,0.11389698]
[1741935901971,3.0,1895.4,1895.1,6.04809]
[1741935902210,8.27593,1895.4,1895.3,0.11384174]
[1741935902394,10.200928,1895.4,1895.2,0.11389698]
[1741935902596,10.200928,1895.4,1895.3,0.11384174]
[1741935902908,10.200928,1895.4,1895.0,5.27698]
[1741935903111,10.200928,1895.4,1895.3,0.11384174]
[1741935903412,5.27633,1895.3,1894.9,5.27721]
[1741935904107,10.55278,1895.3,1894.8,11.3674]
[1741935904271,5.27651,1895.2,1894.8,11.3674]
[1741935904474,6.08871,1895.2,1894.8,11.3674]
[1741935904707,6.08871,1895.2,1894.8,16.64479]
[1741935904907,0.8122,1895.2,1894.8,18.387549]
[1741935905109,0.8122,1895.2,1894.8,18.387619]
[1741935905409,0.8122,1895.2,1894.9,5.39134275]
[1741935905589,0.8122,1895.2,1894.9,0.11406275]
[1741935905994,0.8122,1895.2,1894.8,18.387529]
[1741935906193,0.8122,1895.2,1895.0,0.11400749]